bitfinex/quotes_BTCUSD_20230114
["timestamp","ask_amount","ask_price","bid_price","bid_amount"]
[1673691703860,0.14302839,20391.0,20381.0,0.590629]
[1673691703861,0.32283,20390.0,20381.0,0.590629]
[1673691704107,0.32283,20390.0,20383.0,0.14581662]
[1673691704108,0.219271,20389.0,20383.0,0.14581662]
[1673691704362,0.32283,20388.0,20383.0,0.14581662]
[1673691704606,0.490474,20389.0,20379.0,0.93783765]
[1673691704607,0.54014585,20389.0,20379.0,0.93783765]
[1673691704857,0.54014585,20389.0,20381.0,0.19420104]
[1673691704858,0.5303749,20388.0,20381.0,0.19420104]
[1673691705123,0.5303749,20388.0,20382.0,0.11983]
[1673691705124,0.81336,20387.0,20382.0,0.11983]
[1673691705423,0.81336,20387.0,20381.0,0.19420104]
[1673691705424,0.519271,20386.0,20381.0,0.19420104]
[1673691705655,0.02298,20384.0,20383.0,0.01914965]
[1673691705908,1.11945269,20384.0,20383.0,0.01914965]
[1673691706195,1.40856886,20384.0,20383.0,0.01914965]
[1673691706414,1.11945269,20384.0,20383.0,0.01914965]
[1673691707168,0.93068221,20384.0,20383.0,0.02314965]
[1673691707424,0.38075514,20384.0,20383.0,0.01914965]
[1673691707657,0.43475514,20384.0,20383.0,0.02314965]
[1673691707933,0.21548414,20384.0,20383.0,0.01914965]
[1673691708184,1.7420872,20384.0,20383.0,0.02314965]
[1673691708433,1.79078051,20384.0,20383.0,0.02314965]
[1673691708695,2.1175171,20384.0,20383.0,0.00262154]
[1673691708963,1.69861169,20384.0,20383.0,0.00262154]
[1673691709701,0.1,20383.0,20380.0,1.0]
[1673691709936,0.709899,20382.0,20380.0,1.0]
[1673691710220,0.32283,20381.0,20380.0,1.0]
[1673691710700,0.82301169,20381.0,20380.0,1.0]
[1673691710951,0.32283,20381.0,20380.0,1.0]
[1673691711289,0.82301169,20381.0,20380.0,1.0]
[1673691711554,1.18901169,20381.0,20380.0,1.01]
[1673691711808,1.28901169,20381.0,20380.0,1.01]
[1673691712069,0.38883,20381.0,20380.0,1.01]
[1673691712330,0.5313801,20381.0,20380.0,1.01]
[1673691713357,0.066,20381.0,20380.0,1.01]
[1673691713607,0.066,20381.0,20380.0,1.16359598]
[1673691713874,0.066,20381.0,20380.0,1.01]
[1673691714363,0.005,20381.0,20380.0,1.16066565]
[1673691714616,0.005,20381.0,20380.0,1.35341032]
[1673691714856,0.005,20381.0,20380.0,1.123]
[1673691715117,0.005,20381.0,20380.0,1.26393301]
[1673691715359,0.15685207,20385.0,20380.0,1.14093301]
[1673691715611,0.005,20381.0,20380.0,1.46392482]
[1673691715865,6e-05,20381.0,20380.0,1.15019887]
[1673691716101,0.00506,20381.0,20380.0,1.123]
[1673691716359,0.18743777,20381.0,20380.0,1.0]
[1673691716601,0.18743777,20381.0,20380.0,1.123]
[1673691716858,6e-05,20381.0,20380.0,1.0]
[1673691717113,6e-05,20381.0,20380.0,1.114]
[1673691717114,0.00606,20381.0,20380.0,1.114]
[1673691717370,6e-05,20381.0,20380.0,1.0]
[1673691717617,6e-05,20381.0,20380.0,0.99]
[1673691718391,0.32289,20381.0,20380.0,0.99]
[1673691718645,0.48158956,20381.0,20380.0,1.104]
[1673691718885,0.32889,20381.0,20380.0,1.104]
[1673691719132,0.00606,20381.0,20380.0,1.104]
[1673691719885,0.00606,20381.0,20380.0,1.24966631]
[1673691720131,0.00606,20381.0,20380.0,1.104]
[1673691720685,5.00098149,20385.0,20380.0,1.39472595]
[1673691720920,5.00098149,20385.0,20381.0,1.76265895]
[1673691721172,4.67818149,20385.0,20382.0,0.19072595]
[1673691721418,4.67818149,20385.0,20383.0,1.081208]
[1673691721717,4.67818149,20385.0,20383.0,0.981208]
[1673691721955,4.67818149,20385.0,20383.0,0.490604]
[1673691722217,4.67818149,20385.0,20381.0,1.33931124]
[1673691722218,4.67818149,20385.0,20381.0,1.23931124]
[1673691722464,4.67818149,20385.0,20382.0,0.629626]
[1673691722722,4.67818149,20385.0,20383.0,0.32972595]
[1673691722959,4.67818149,20385.0,20384.0,1.61564]
[1673691723209,2.98408149,20385.0,20384.0,1.61564]
[1673691723725,0.816462,20398.0,20386.0,1.15875203]
[1673691723726,0.35,20396.0,20386.0,1.15875203]
[1673691723975,0.00096677,20391.0,20388.0,1.22300683]
[1673691724219,0.14676696,20399.0,20389.0,2.36730595]
[1673691724220,0.16116349,20396.0,20389.0,2.36730595]
[1673691724473,0.49479385,20402.0,20391.0,0.1]
[1673691724474,0.16629508,20400.0,20391.0,0.1]
[1673691724725,1.05760387,20401.0,20393.0,0.490355]
[1673691724726,0.00095044,20396.0,20393.0,0.490355]
[1673691724986,0.490176,20401.0,20393.0,0.68108095]
[1673691725251,0.00095227,20398.0,20394.0,0.75232595]
[1673691725516,0.17109327,20400.0,20394.0,0.91709987]
[1673691725764,0.17109327,20400.0,20395.0,0.19072595]
[1673691726007,0.17109327,20400.0,20396.0,0.19072595]
[1673691726253,0.00099376,20401.0,20396.0,0.19072595]
[1673691726511,0.16736939,20400.0,20397.0,0.19072595]
[1673691727017,0.00099376,20401.0,20395.0,0.59031]
[1673691727018,0.00099376,20401.0,20398.0,0.19072595]
[1673691727262,0.00099376,20401.0,20399.0,0.19072595]
[1673691727513,0.20295961,20402.0,20400.0,0.29072595]
[1673691727762,0.20295961,20402.0,20400.0,0.78091295]
[1673691727763,0.00463185,20402.0,20400.0,0.78091295]
[1673691728003,0.00463185,20402.0,20401.0,0.16141786]
[1673691728004,0.00440263,20402.0,20401.0,0.16141786]
[1673691728508,0.00440263,20402.0,20400.0,1.631172]
[1673691728759,0.00440263,20402.0,20401.0,0.14969849]
[1673691729251,0.00440263,20402.0,20401.0,0.14]
[1673691729510,0.05651263,20402.0,20401.0,0.14]
[1673691729767,0.86950063,20402.0,20401.0,0.14]
[1673691730014,0.86950063,20402.0,20391.0,0.1631977]
[1673691730015,0.1,20401.0,20391.0,0.1631977]
[1673691730261,0.1,20401.0,20389.0,0.490447]
[1673691730262,0.02298,20396.0,20389.0,0.5763]
[1673691730507,0.490342,20394.0,20389.0,0.5763]
[1673691730751,0.32283,20393.0,20390.0,0.15250703]
[1673691731002,0.32283,20393.0,20389.0,0.5763]
[1673691731003,0.490379,20393.0,20389.0,0.5763]
[1673691731251,0.622849,20392.0,20382.0,0.49061]
[1673691731492,0.980899,20390.0,20389.0,0.045]
[1673691731735,0.980899,20390.0,20383.0,0.5763]
[1673691731991,0.490403,20392.0,20390.0,0.23260469]
[1673691732239,0.490403,20392.0,20390.0,0.37833064]
[1673691732494,0.490403,20392.0,20388.0,0.19656193]
[1673691732495,0.1,20391.0,20388.0,0.19656193]
[1673691732740,0.1,20391.0,20383.0,1.066891]
[1673691732741,1.303721,20390.0,20383.0,0.5763]
[1673691733006,0.60571884,20389.0,20383.0,0.5763]
[1673691733253,0.70942984,20388.0,20380.0,1.17033597]
[1673691733500,1.00571884,20387.0,20380.0,1.16074623]
[1673691733758,1.00571884,20387.0,20382.0,0.17573617]
[1673691733759,1.19998384,20386.0,20382.0,0.17573617]
[1673691734071,0.219138,20385.0,20384.0,0.15914977]
[1673691734321,0.00095887,20387.0,20384.0,0.14912962]
[1673691734562,0.00095887,20387.0,20384.0,0.33985557]
[1673691734815,0.015,20387.0,20384.0,0.14912962]
[1673691735072,0.015,20387.0,20384.0,0.18551469]
[1673691735073,0.322849,20386.0,20384.0,0.18551469]
[1673691735314,0.64350573,20388.0,20384.0,0.18551469]
[1673691735559,0.64350573,20388.0,20384.0,0.37624064]
[1673691735809,0.18828864,20387.0,20384.0,0.37624064]
[1673691736066,0.322849,20386.0,20380.0,1.13369414]
[1673691736316,0.286248,20385.0,20384.0,0.04]
[1673691736583,0.05211,20385.0,20381.0,0.1527281]
[1673691736827,0.05211,20385.0,20384.0,0.004]
[1673691737072,0.66095676,20387.0,20384.0,0.004]
[1673691737317,0.66095676,20387.0,20384.0,0.19072595]
[1673691737567,0.337849,20386.0,20383.0,0.17730464]
[1673691737812,0.219138,20385.0,20383.0,0.17730464]
[1673691738066,0.136,20385.0,20384.0,0.004]
[1673691738308,0.490539,20386.0,20383.0,0.17730464]
[1673691738563,0.490539,20386.0,20380.0,0.99]
[1673691738813,0.490539,20386.0,20381.0,0.19072595]
[1673691739085,0.79827355,20387.0,20384.0,0.004]
[1673691739338,0.0009838,20386.0,20384.0,0.19072595]
[1673691739590,0.015,20386.0,20384.0,0.19072595]
[1673691740091,0.015,20386.0,20384.0,0.005]
[1673691740353,0.00098738,20389.0,20385.0,0.2426]
[1673691740599,0.00098738,20389.0,20386.0,1.10112595]
[1673691740863,0.19214707,20391.0,20386.0,1.100927]
[1673691741125,0.490393,20392.0,20386.0,0.80112595]
[1673691741427,0.01,20386.0,20384.0,0.079]
[1673691741738,0.322849,20385.0,20384.0,0.079]
[1673691742009,0.813405,20385.0,20380.0,0.99]
[1673691742241,0.519138,20384.0,20380.0,0.99]
[1673691742493,1.404067,20383.0,20380.0,0.99]
[1673691742737,0.542118,20382.0,20380.0,0.99]
[1673691743035,1.304155,20381.0,20380.0,0.99]
[1673691743260,1.304155,20381.0,20380.0,1.069]
[1673691743511,1.304155,20381.0,20380.0,0.99]
[1673691743759,1.304155,20381.0,20380.0,0.998]
[1673691744004,0.813502,20381.0,20380.0,0.99]
[1673691744251,1.0610818,20381.0,20380.0,0.998]
[1673691745244,1.4610818,20381.0,20380.0,0.998]
[1673691745490,1.4610818,20381.0,20380.0,0.995]
[1673691745491,1.3570818,20381.0,20380.0,0.995]
[1673691745740,2.18128453,20381.0,20380.0,0.73636521]
[1673691745991,2.82653571,20381.0,20380.0,0.73636521]
[1673691746232,2.22183635,20381.0,20380.0,0.72936521]
[1673691746478,0.1,20380.0,20379.0,0.01914965]
[1673691746722,2.49176901,20380.0,20379.0,0.01914965]
[1673691747218,1.99158732,20380.0,20379.0,0.01914965]
[1673691747465,0.709815,20380.0,20379.0,0.19822958]
[1673691747722,0.219138,20380.0,20379.0,0.01914965]
[1673691747969,0.219138,20380.0,20379.0,0.17920466]
[1673691748216,0.219138,20380.0,20379.0,0.01914965]
[1673691748217,0.319138,20380.0,20379.0,0.01914965]
[1673691748970,0.219138,20380.0,20379.0,0.01914965]
[1673691749218,0.319138,20380.0,20379.0,0.01914965]
[1673691749714,0.54094915,20380.0,20379.0,0.02014965]
[1673691749966,0.455138,20380.0,20379.0,0.02014965]
[1673691750213,0.455138,20380.0,20379.0,0.2058756]
[1673691750214,0.355138,20380.0,20379.0,0.2058756]
[1673691750463,0.355138,20380.0,20379.0,0.01514965]
[1673691750464,0.136,20380.0,20379.0,0.01514965]
[1673691751474,0.25,20383.0,20379.0,0.01414965]
[1673691751720,0.011,20380.0,20379.0,0.7145716]
[1673691751976,0.25,20383.0,20379.0,0.50484565]
[1673691752229,0.25,20383.0,20380.0,0.1]
[1673691752469,0.25,20383.0,20381.0,0.68137895]
[1673691752972,0.25,20383.0,20382.0,0.19072595]
[1673691753228,0.0009671,20388.0,20383.0,0.085]
[1673691753492,0.490424,20391.0,20384.0,0.68129395]
[1673691753744,0.4914061,20391.0,20385.0,0.19072595]
[1673691753996,0.02298,20389.0,20386.0,0.19072595]
[1673691754239,1.303817,20388.0,20386.0,0.19072595]
[1673691754494,1.303817,20388.0,20383.0,0.5919]
[1673691754495,0.219138,20387.0,20383.0,0.5919]
[1673691754752,0.322849,20386.0,20383.0,0.69869576]
[1673691754992,0.490534,20386.0,20380.0,0.1]
[1673691755241,0.490534,20386.0,20379.0,0.01414965]
[1673691755242,0.008,20383.0,20381.0,0.092]
[1673691755489,0.981071,20386.0,20382.0,0.12670569]
[1673691755737,0.981071,20386.0,20383.0,0.092]
[1673691755984,0.322849,20385.0,20383.0,0.092]
[1673691756233,0.219138,20384.0,20383.0,0.092]
[1673691756487,0.219138,20384.0,20382.0,0.12670569]
[1673691756734,0.322849,20383.0,20382.0,0.011]
[1673691757546,0.509534,20386.0,20382.0,0.69235395]
[1673691757547,0.019,20386.0,20382.0,0.69235395]
[1673691757790,0.092,20385.0,20383.0,0.19872595]
[1673691758042,0.092,20385.0,20384.0,0.49058]
[1673691758307,0.092,20385.0,20384.0,0.59058]
[1673691758531,0.49138472,20391.0,20384.0,0.59058]
[1673691758778,0.00095372,20391.0,20385.0,0.19072595]
[1673691759024,0.00095372,20391.0,20386.0,1.17176395]
[1673691759288,0.00095372,20391.0,20387.0,0.29072595]
[1673691759537,0.00422714,20393.0,20388.0,1.17168495]
[1673691759783,0.00422714,20393.0,20389.0,0.87632132]
[1673691760036,0.00422714,20393.0,20389.0,0.85765678]
[1673691760783,0.003,20391.0,20389.0,0.85765678]
[1673691761034,0.00422714,20393.0,20389.0,0.66693083]
[1673691761271,0.09422714,20393.0,20389.0,0.568]
[1673691761516,0.49459214,20393.0,20389.0,0.56]
[1673691761769,0.49459214,20393.0,20389.0,0.77916116]
[1673691761770,0.50259214,20393.0,20389.0,0.77916116]
[1673691762020,0.49459214,20393.0,20389.0,0.87588711]
[1673691762271,0.49459214,20393.0,20389.0,0.69316116]
[1673691762272,0.58459214,20393.0,20389.0,0.69316116]
[1673691762519,0.49459214,20393.0,20389.0,0.68516116]
[1673691763250,0.322849,20392.0,20389.0,0.68516116]
[1673691763504,0.50259214,20393.0,20389.0,0.654]
[1673691764000,0.59259214,20393.0,20389.0,0.85272595]
[1673691764249,0.49459214,20393.0,20389.0,0.75072595]
[1673691764499,0.49459214,20393.0,20388.0,0.12910465]
[1673691764753,0.322849,20392.0,20385.0,1.026244]
[1673691764993,0.322849,20392.0,20387.0,0.10920353]
[1673691764994,0.490437,20390.0,20387.0,0.10920353]
[1673691765267,0.490437,20390.0,20389.0,0.008]
[1673691765518,0.490437,20390.0,20385.0,0.6321028]
[1673691765757,0.490437,20390.0,20388.0,0.008]
[1673691765758,0.322849,20389.0,20388.0,0.008]
[1673691765996,0.59046,20389.0,20388.0,0.008]
[1673691766255,0.803309,20389.0,20388.0,0.008]
[1673691766503,0.803309,20389.0,20385.0,0.6321028]
[1673691766750,0.48046,20389.0,20387.0,0.008]
[1673691766995,0.48046,20389.0,20387.0,0.13227535]
[1673691767266,0.57046,20389.0,20388.0,0.008]
[1673691767523,0.09,20389.0,20388.0,0.11803747]
[1673691767769,0.09,20389.0,20388.0,0.19872595]
[1673691767770,0.093,20389.0,20388.0,0.19872595]
[1673691768021,0.003,20389.0,20388.0,0.21100346]
[1673691768267,0.003,20389.0,20388.0,0.1]
[1673691768268,0.093,20389.0,20388.0,0.1]
[1673691768524,0.09,20389.0,20388.0,0.19653527]
[1673691769022,0.09,20389.0,20388.0,0.1]
[1673691769271,0.173,20389.0,20388.0,0.599484]
[1673691769517,0.00099031,20392.0,20388.0,0.890484]
[1673691769766,0.00099031,20392.0,20388.0,0.78120995]
[1673691770032,0.007,20389.0,20388.0,0.691484]
[1673691770279,0.00422714,20393.0,20389.0,0.24329294]
[1673691770531,0.00422714,20393.0,20390.0,1.471293]
[1673691770779,0.007,20392.0,20390.0,2.136793]
[1673691771031,0.007,20392.0,20389.0,0.00069294]
[1673691771032,0.490412,20391.0,20389.0,0.00069294]
[1673691771278,0.48420169,20392.0,20389.0,0.10269294]
[1673691771279,0.08017431,20392.0,20389.0,0.10269294]
[1673691771777,0.57057031,20392.0,20389.0,0.10269294]
[1673691772028,0.322849,20391.0,20389.0,0.10269294]
[1673691772268,0.219138,20390.0,20389.0,0.00069294]
[1673691772512,0.709574,20390.0,20389.0,0.00069294]
[1673691773018,1.109574,20390.0,20389.0,0.00069294]
[1673691773239,1.3307543,20390.0,20389.0,0.00069294]
[1673691773526,1.109574,20390.0,20389.0,0.00052785]
[1673691773784,0.709574,20390.0,20389.0,0.00052785]
[1673691774026,0.809574,20390.0,20389.0,0.00052785]
[1673691774551,0.79157092,20390.0,20389.0,0.00052785]
[1673691774802,0.89157092,20390.0,20389.0,0.00052785]
[1673691775051,0.793574,20390.0,20389.0,0.00952785]
[1673691775303,0.809574,20390.0,20389.0,0.00052785]
[1673691775527,1.193574,20390.0,20389.0,0.00952785]
[1673691777279,0.89155952,20390.0,20389.0,0.00952785]
[1673691779252,0.084,20390.0,20389.0,0.00952785]
[1673691779496,0.084,20390.0,20389.0,0.14254096]
[1673691780244,0.084,20390.0,20389.0,0.00952785]
[1673691780501,0.084,20390.0,20389.0,0.10589462]
[1673691780956,0.00422714,20393.0,20389.0,0.00052785]
[1673691781238,0.00422714,20393.0,20390.0,0.68115795]
[1673691781772,0.00422714,20393.0,20392.0,0.1429]
[1673691782021,0.00573443,20396.0,20392.0,2.68199164]
[1673691782261,0.00573443,20396.0,20393.0,0.29072595]
[1673691782513,0.00573443,20396.0,20394.0,0.98068]
[1673691783009,0.00573443,20396.0,20395.0,0.1]
[1673691783277,0.00973443,20396.0,20395.0,0.1]
[1673691783525,0.00973443,20396.0,20395.0,0.590316]
[1673691783775,0.00973443,20396.0,20395.0,0.78104195]
[1673691784020,0.00973443,20396.0,20395.0,0.590316]
[1673691784270,0.00873443,20396.0,20395.0,0.590316]
[1673691784519,0.00573443,20396.0,20395.0,0.590316]
[1673691785046,0.00573443,20396.0,20395.0,0.603316]
[1673691785291,0.00573443,20396.0,20395.0,1.38051769]
[1673691785551,3.443e-05,20396.0,20395.0,1.38051769]
[1673691785803,0.00422714,20398.0,20396.0,0.1]
[1673691786057,0.00489478,20400.0,20397.0,2.09190569]
[1673691786309,0.73349954,20406.0,20398.0,0.66792764]
[1673691786555,0.73349954,20406.0,20399.0,2.58147264]
[1673691786556,0.73446038,20406.0,20399.0,2.58147264]
[1673691786808,0.73446038,20406.0,20401.0,0.1426]
[1673691787064,0.73446038,20406.0,20401.0,2.10384195]
[1673691787315,0.73446038,20406.0,20401.0,2.68104364]
[1673691787566,0.73446038,20406.0,20401.0,2.49031769]
[1673691787876,0.73446038,20406.0,20403.0,0.1429]
[1673691788122,0.73446038,20406.0,20404.0,0.980198]
[1673691788388,0.09568161,20405.0,20402.0,0.590126]
[1673691788637,0.00633149,20405.0,20403.0,0.490119]
[1673691788885,0.00633149,20405.0,20404.0,0.11034803]
[1673691789130,0.00633149,20405.0,20404.0,0.60144703]
[1673691789379,0.00633149,20405.0,20404.0,0.001]
[1673691789629,0.05844149,20405.0,20404.0,0.001]
[1673691789875,0.10357778,20404.0,20401.0,0.12157698]
[1673691790126,0.00419688,20404.0,20403.0,0.5681]
[1673691790375,0.00419688,20404.0,20403.0,0.5901]
[1673691790621,0.00419688,20404.0,20403.0,0.8901]
[1673691790876,0.00419688,20404.0,20403.0,1.06730169]
[1673691791130,0.00433149,20405.0,20404.0,0.22948862]
[1673691791372,0.00433149,20405.0,20404.0,0.71958762]
[1673691791628,0.00433149,20405.0,20404.0,0.89103173]
[1673691791882,0.71217051,20407.0,20405.0,0.11225928]
[1673691792132,0.71217051,20407.0,20406.0,2.09025469]
[1673691792374,0.71117325,20407.0,20406.0,2.39025469]
[1673691793121,0.67915701,20407.0,20406.0,2.39025469]
[1673691793371,1.49e-06,20409.0,20407.0,0.1]
[1673691793610,1.49e-06,20409.0,20408.0,2.09031069]
[1673691793861,1.49e-06,20409.0,20408.0,2.42637054]
[1673691794377,1.49e-06,20409.0,20408.0,6.42637054]
[1673691794883,1.49e-06,20409.0,20408.0,6.56537054]
[1673691795136,1.49e-06,20409.0,20408.0,6.67437392]
[1673691795887,1.49e-06,20409.0,20408.0,6.42637054]
[1673691796141,1.49e-06,20409.0,20408.0,6.56437054]
[1673691796652,1.49e-06,20409.0,20408.0,5.608009]
[1673691796906,1.49e-06,20409.0,20408.0,0.628003]
[1673691797642,1.49e-06,20409.0,20408.0,0.490003]
[1673691797894,0.05311149,20409.0,20408.0,0.138]
[1673691798387,0.10741634,20409.0,20408.0,0.138]
[1673691798628,0.1,20408.0,20407.0,1.08516903]
[1673691798880,0.319138,20408.0,20407.0,1.08516903]
[1673691799127,0.1,20408.0,20407.0,1.08516903]
[1673691799402,0.422849,20408.0,20407.0,1.08516903]
[1673691799857,0.51126053,20408.0,20407.0,1.08516903]
[1673691800137,0.51126053,20408.0,20405.0,0.01225928]
[1673691800138,0.90005069,20408.0,20405.0,0.01225928]
[1673691800381,0.90005069,20408.0,20405.0,5.928e-05]
[1673691800382,0.619138,20407.0,20405.0,5.928e-05]
[1673691800639,0.322849,20406.0,20405.0,5.928e-05]
[1673691801147,0.0917018,20407.0,20405.0,5.928e-05]
[1673691801397,0.09513224,20409.0,20405.0,0.12186725]
[1673691801664,0.09513224,20409.0,20405.0,0.3245932]
[1673691801665,0.013,20408.0,20405.0,0.3245932]
[1673691801910,0.08845513,20408.0,20406.0,0.1325144]
[1673691802398,0.07545513,20408.0,20406.0,0.1325144]
[1673691802889,0.07545513,20408.0,20405.0,0.00305928]
[1673691803146,0.07545513,20408.0,20406.0,0.0964126]
[1673691803396,0.01300149,20409.0,20406.0,0.0964126]
[1673691803397,1.49e-06,20409.0,20406.0,0.29813855]
[1673691803647,0.013,20408.0,20407.0,0.1]
[1673691804139,0.013,20408.0,20406.0,0.60102469]
[1673691804392,1.49e-06,20409.0,20407.0,0.3]
[1673691804641,1.49e-06,20409.0,20408.0,0.980006]
[1673691805408,1.49e-06,20409.0,20407.0,0.490019]
[1673691805654,1.49e-06,20409.0,20405.0,0.49012528]
[1673691805913,1.49e-06,20409.0,20405.0,5.928e-05]
[1673691806159,1.49e-06,20409.0,20408.0,0.003]
[1673691806160,0.55509549,20409.0,20408.0,0.003]
[1673691806414,1.22792073,20409.0,20405.0,5.928e-05]
[1673691806668,0.619138,20408.0,20405.0,5.928e-05]
[1673691806915,1.302903,20407.0,20405.0,5.928e-05]
[1673691807170,0.219138,20406.0,20405.0,5.928e-05]
[1673691807423,0.59605386,20406.0,20405.0,5.928e-05]
[1673691807676,0.39605386,20406.0,20405.0,0.01105928]
[1673691807937,0.29605386,20406.0,20405.0,5.928e-05]
[1673691808178,0.219138,20406.0,20405.0,0.01105928]
[1673691808428,0.519138,20406.0,20405.0,5.928e-05]
[1673691808672,1.122189,20406.0,20405.0,0.01105928]
[1673691808926,0.822189,20406.0,20405.0,0.01105928]
[1673691809182,0.722189,20406.0,20405.0,0.01105928]
[1673691809428,0.709189,20406.0,20405.0,5.928e-05]
[1673691809685,1.35327069,20406.0,20404.0,0.00093273]
[1673691809930,1.27078171,20405.0,20404.0,2.73e-06]
[1673691810178,0.00092727,20404.0,20400.0,0.01609897]
[1673691810435,0.76598,20401.0,20400.0,9.897e-05]
[1673691810676,0.1,20400.0,20395.0,0.11453238]
[1673691810920,0.1,20400.0,20398.0,0.00635123]
[1673691810921,1.833734,20399.0,20398.0,0.00635123]
[1673691811166,2.133734,20399.0,20398.0,0.00635123]
[1673691811435,2.4984226,20399.0,20398.0,5.123e-05]
[1673691811680,0.1,20398.0,20391.0,0.12915858]
[1673691811961,0.1,20398.0,20394.0,0.10177926]
[1673691811962,0.1439,20395.0,20394.0,0.10177926]
[1673691812280,0.219138,20395.0,20389.0,0.00052785]
[1673691812549,0.58316725,20396.0,20390.0,0.1]
[1673691812796,0.09287325,20396.0,20391.0,0.19072595]
[1673691813040,0.08111532,20394.0,20390.0,0.59210135]
[1673691813295,0.08111532,20394.0,20389.0,0.00052785]
[1673691813296,0.00820889,20394.0,20389.0,0.00052785]
[1673691813548,0.1,20393.0,20389.0,0.09716173]
[1673691813803,1.199924,20392.0,20389.0,0.09716173]
[1673691814052,0.322849,20391.0,20389.0,0.09716173]
[1673691814302,0.219138,20390.0,20389.0,0.10016173]
[1673691814556,0.219138,20390.0,20389.0,0.09716173]
[1673691814800,0.490419,20391.0,20390.0,0.11715132]
[1673691815022,0.490419,20391.0,20389.0,0.00052785]
[1673691815301,0.402849,20390.0,20389.0,0.00552785]
[1673691815544,0.68670933,20391.0,20389.0,0.00052785]
[1673691815794,0.813285,20390.0,20389.0,0.00052785]
[1673691816299,0.913285,20390.0,20389.0,0.00052785]
[1673691816560,0.1,20389.0,20380.0,2.74393774]
[1673691816817,0.143,20381.0,20379.0,0.12341736]
[1673691817061,0.322849,20380.0,20379.0,0.12341736]
[1673691817561,0.40712822,20380.0,20377.0,0.18931176]
[1673691817810,0.84252714,20379.0,20377.0,0.18931176]
[1673691818055,1.304299,20378.0,20377.0,0.18931176]
[1673691818306,1.604299,20378.0,20377.0,0.18931176]
[1673691818559,2.62719854,20378.0,20377.0,1.176e-05]
[1673691818813,0.1,20377.0,20376.0,0.01930193]
[1673691819052,0.219138,20377.0,20376.0,0.01930193]
[1673691819790,0.20278677,20377.0,20376.0,0.13051085]
[1673691820312,0.52541099,20377.0,20376.0,0.01930193]
[1673691820566,1.03903237,20377.0,20376.0,0.01930193]
[1673691820812,1.19801237,20377.0,20376.0,0.01930193]
[1673691821068,1.06201237,20377.0,20376.0,0.00528204]
[1673691821336,1.07253577,20377.0,20376.0,0.00528204]
[1673691821586,1.37253577,20377.0,20376.0,0.00528204]
[1673691821836,1.37253577,20377.0,20373.0,0.01974847]
[1673691821837,0.05656958,20375.0,20373.0,0.01974847]
[1673691822086,1.6439443,20373.0,20366.0,1.60090519]
[1673691822379,0.143,20367.0,20366.0,1.59090519]
[1673691822604,0.143,20367.0,20358.0,1.76750688]
[1673691822605,0.11143417,20366.0,20358.0,1.76750688]
[1673691822860,0.11143417,20366.0,20358.0,1.76643034]
[1673691822861,0.16688,20359.0,20358.0,1.76643034]
[1673691823115,0.96693069,20359.0,20358.0,1.76643034]
[1673691823394,2.74047969,20359.0,20358.0,1.76643034]
[1673691823640,0.0002334,20358.0,20355.0,1.40766899]
[1673691823889,1.04613432,20358.0,20355.0,1.40766899]
[1673691824144,3.27766191,20358.0,20355.0,1.40766899]
[1673691824391,0.16458,20356.0,20355.0,1.40766899]
[1673691824645,0.82388669,20356.0,20355.0,1.40766899]
[1673691824893,1.63582169,20356.0,20355.0,1.40766899]
[1673691825139,1.73582169,20356.0,20352.0,1.40764957]
[1673691825393,0.80005069,20355.0,20352.0,1.40764957]
[1673691825646,0.1,20355.0,20352.0,1.59837552]
[1673691825895,0.137,20356.0,20352.0,1.40764957]
[1673691826140,0.00815698,20357.0,20352.0,1.59837552]
[1673691826141,0.00097698,20357.0,20352.0,1.59837552]
[1673691826420,0.00097698,20357.0,20353.0,0.19072595]
[1673691826663,0.00097698,20357.0,20354.0,0.20954495]
[1673691826909,0.047,20356.0,20354.0,0.19072595]
[1673691827172,0.047,20356.0,20352.0,1.90998357]
[1673691827173,0.047,20356.0,20352.0,1.40764957]
[1673691827417,0.1,20355.0,20352.0,1.40764957]
[1673691827674,0.1,20355.0,20353.0,0.09807349]
[1673691827675,0.814163,20354.0,20353.0,0.09807349]
[1673691827923,0.635203,20354.0,20352.0,1.40764957]
[1673691828179,0.42286,20353.0,20352.0,1.54464957]
[1673691828424,0.42286,20353.0,20352.0,1.40764957]
[1673691828668,0.32286,20353.0,20352.0,1.49464957]
[1673691828909,0.103,20355.0,20352.0,1.49464957]
[1673691828910,0.003,20355.0,20352.0,1.49464957]
[1673691829150,0.047,20354.0,20352.0,1.69637552]
[1673691829403,0.10266467,20355.0,20352.0,1.40764957]
[1673691829658,0.47720169,20342.0,20340.0,0.019656]
[1673691829903,0.47720169,20342.0,20332.0,0.10735086]
[1673691829904,0.05896799,20338.0,20332.0,0.10735086]
[1673691830162,0.1438,20335.0,20332.0,0.10735086]
[1673691830409,0.1436,20333.0,20332.0,0.10735086]
[1673691830665,0.1436,20333.0,20325.0,0.1139751]
[1673691830666,1.12357569,20333.0,20325.0,0.1139751]
[1673691830905,1.12357569,20333.0,20325.0,0.0015]
[1673691830906,0.16458,20326.0,20325.0,0.0015]
[1673691831151,0.10735,20332.0,20324.0,0.6]
[1673691831400,0.10735,20332.0,20324.0,0.79072595]
[1673691831646,0.10830831,20332.0,20325.0,0.19072595]
[1673691832154,0.10498257,20332.0,20326.0,0.19072595]
[1673691832414,0.58218426,20332.0,20327.0,0.018919]
[1673691832703,0.58218426,20332.0,20324.0,0.138]
[1673691832704,0.57217784,20325.0,20324.0,0.138]
[1673691832949,0.1,20324.0,20303.0,0.20365844]
[1673691833205,0.45587298,20323.0,20315.0,0.1439]
[1673691833474,0.57217784,20325.0,20308.0,0.492401]
[1673691833475,0.1,20322.0,20308.0,0.492401]
[1673691833730,0.1439,20319.0,20305.0,0.1]
[1673691833979,0.62068,20316.0,20304.0,0.4957]
[1673691834234,0.97997569,20315.0,20302.0,0.00576]
[1673691834494,0.97997569,20315.0,20290.0,0.20138631]
[1673691834495,1.64980843,20296.0,20287.0,4.79624531]
[1673691834761,0.28777318,20288.0,20287.0,4.66769922]
[1673691835026,18.13562559,20288.0,20287.0,1.34139936]
[1673691835270,20.76691945,20288.0,20285.0,0.02955635]
[1673691835523,20.76691945,20288.0,20284.0,1.76290793]
[1673691835524,4.46787907,20288.0,20284.0,1.76290793]